[Event "34th MPL National U12G Chess-ch 2022"]
[Site "Mysore"]
[Date "2022.04.12"]
[Round "8.1"]
[White "Shriyana S Mallya"]
[Black "Shubhi Gupta"]
[Result "0-1"]
[ECO "C45"]
[WhiteElo "1277"]
[BlackElo "1434"]
[Annotator "NA RC"]
[PlyCount "76"]
[EventDate "2022.04.09"]
[EventCountry "IND"]
[SourceTitle "playchess.com"]
[Source "ChessBase"]
[SourceQuality "1"]
[TimeControl "5400+30"]

1. e4 {[%emt 0:00:04]} e5 {[%emt 0:00:35]} 2. Nf3 {[%emt 0:00:06]} Nc6 {[%emt 0:00:22]} 3. d4 {[%emt 0:00:45]} exd4 {[%emt 0:00:27]} 4. Nxd4 {[%emt 0:00:14]} Bc5 {[%emt 0:00:38]} 5. Be3 {[%emt 0:01:01]} Qf6 {[%emt 0:01:55]} 6. c3 {[%emt 0:00:56]} Nge7 {[%emt 0:01:15]} 7. Bc4 {[%emt 0:00:28]} Ne5 {[%emt 0:01:37]} 8. Be2 {[%emt 0:01:51]} Qg6 {[%emt 0:02:38]} 9. O-O {[%emt 0:02:15]} O-O {[%emt 0:03:53]} 10. Nf5 {[%emt 0:06:18]} Nxf5 {[%emt 0:06:44]} 11. Bxc5 {[%emt 0:03:31]} Nh4 {[%emt 0:02:08]} 12. g3 {[%emt 0:01:52]} d6 {[%emt 0:01:37]} 13. f4 {[%emt 0:15:05]} Bh3 {[%emt 0:05:12]} 14. Rf2 {[%emt 0:02:28]} Ng4 {[%emt 0:09:10]} 15. Bxg4 {[%emt 0:19:12]} Bxg4 {[%emt 0:00:33]} 16. f5 {[%emt 0:01:55]} Qh5 {[%emt 0:01:34]} 17. Qd3 {[%emt 0:09:55]} Nf3+ {[%emt 0:05:33]} 18. Rxf3 {[%emt 0:03:05]} Bxf3 {[%emt 0:00:35]} 19. Bf2 {[%emt 0:05:55]} d5 {[%emt 0:05:39]} 20. exd5 {[%emt 0:07:55]} Rad8 {[%emt 0:01:08]} 21. c4 {[%emt 0:05:16]} Bg4 {[%emt 0:03:43]} 22. Nc3 {[%emt 0:00:49]} Bxf5 {[%emt 0:01:16]} 23. Qe3 {[%emt 0:03:38]} Rfe8 {[%emt 0:02:14]} 24. Qf4 {[%emt 0:01:48]} Bh3 {[%emt 0:02:14]} 25. Bd4 {[%emt 0:02:36]} Rd7 {[%emt 0:02:33]} 26. c5 {[%emt 0:02:21]} Rde7 {[%emt 0:00:50]} 27. Bf2 {[%emt 0:01:00]} Re5 {[%emt 0:01:21]} 28. d6 {[%emt 0:01:12]} g5 {[%emt 0:02:02]} 29. Qf6 {[%emt 0:00:34]} R8e6 {[%emt 0:00:41]} 30. d7 {[%emt 0:00:34]} Rxf6 {[%emt 0:00:19]} 31. d8=Q+ {[%emt 0:00:04]} Kg7 {[%emt 0:00:06]} 32. Qd3 {[%emt 0:00:23]} Rf3 {[%emt 0:01:40]} 33. Qd4 {[%emt 0:00:31]} f6 {[%emt 0:01:25]} 34. Ne4 {[%emt 0:00:50]} Rf4 {[%emt 0:01:38]} 35. Nxf6 {[%emt 0:00:59]} Qf3 {[%emt 0:01:14]} 36. Nh5+ {[%emt 0:00:07]} Kg6 {[%emt 0:00:41]} 37. Nxf4+ {[%emt 0:00:26]} gxf4 {[%emt 0:00:15]} 38. Qxf4 {[%emt 0:00:58]} Qg2# {[%emt 0:00:05]} 0-1

[Event "34th MPL National U12G Chess-ch 2022"]
[Site "Mysore"]
[Date "2022.04.12"]
[Round "8.2"]
[White "Shreya G Hipparagi"]
[Black "Sherali Pattnaik"]
[Result "1/2-1/2"]
[ECO "B57"]
[WhiteElo "1552"]
[BlackElo "1209"]
[Annotator "NA RC"]
[PlyCount "72"]
[EventDate "2022.04.09"]
[EventCountry "IND"]
[SourceTitle "playchess.com"]
[Source "ChessBase"]
[SourceQuality "1"]
[TimeControl "5400+30"]

1. e4 {[%emt 0:00:04]} c5 {[%emt 0:00:12]} 2. Nf3 {[%emt 0:00:07]} e6 {[%emt 0:00:03]} 3. d4 {[%emt 0:00:06]} cxd4 {[%emt 0:00:05]} 4. Nxd4 {[%emt 0:00:06]} a6 {[%emt 0:00:02]} 5. Bd3 {[%emt 0:00:34]} Qc7 {[%emt 0:01:30]} 6. O-O {[%emt 0:01:01]} Nc6 {[%emt 0:00:03]} 7. Be3 {[%emt 0:02:44]} Nf6 {[%emt 1:32:05]} 8. Nb3 {[%emt 0:03:14]} Be7 {[%emt 0:00:00]} 9. f4 {[%emt 0:01:43]} d6 {[%emt 0:00:00]} 10. Nc3 {[%emt 0:01:10]} b5 {[%emt 0:00:00]} 11. a4 {[%emt 0:03:15]} b4 {[%emt 0:00:00]} 12. Ne2 {[%emt 0:00:48]} Ng4 {[%emt 0:00:00]} 13. Qd2 {[%emt 0:04:34]} O-O {[%emt 0:00:00]} 14. Rac1 {[%emt 0:02:49]} Bf6 {[%emt 0:00:00]} 15. c3 {[%emt 0:06:54]} bxc3 {[%emt 0:00:00]} 16. Nxc3 {[%emt 0:02:56]} Nxe3 {[%emt 0:00:00]} 17. Qxe3 {[%emt 0:00:37]} Rb8 {[%emt 0:00:00]} 18. e5 {[%emt 0:07:11]} dxe5 {[%emt 0:00:00]} 19. Ne4 {[%emt 0:04:40]} Qb6 {[%emt 0:00:00]} 20. Nxf6+ {[%emt 0:05:17]} gxf6 {[%emt 0:00:00]} 21. Nc5 {[%emt 0:01:28]} f5 {[%emt 0:00:00]} 22. fxe5 {[%emt 0:08:07]} Kh8 {[%emt 0:00:00]} 23. Qh6 {[%emt 0:02:24]} Qd8 {[%emt 0:00:00]} 24. Ne4 {[%emt 0:07:29]} Rg8 {[%emt 0:00:00]} 25. Nf6 {[%emt 0:01:15]} Rg7 {[%emt 0:00:00]} 26. Rxc6 {[%emt 0:01:04]} Bb7 {[%emt 0:00:00]} 27. Rc2 {[%emt 0:04:00]} Qxd3 {[%emt 0:00:00]} 28. Rd2 {[%emt 0:00:49]} Qc4 {[%emt 0:00:00]} 29. Rfd1 {[%emt 0:04:41]} Qc7 {[%emt 0:00:00]} 30. Qh4 {[%emt 0:01:09]} Rf8 {[%emt 0:02:02]} 31. g3 {[%emt 0:03:12]} Qc6 {[%emt 0:01:18]} 32. Qh5 {[%emt 0:04:57]} a5 {[%emt 0:02:35]} 33. b3 {[%emt 0:00:31]} Qb6+ {[%emt 0:00:25]} 34. Kf1 {[%emt 0:00:29]} Qc6 {[%emt 0:01:43]} 35. Nd7 {[%emt 0:08:27]} Qh1+ {[%emt 0:00:26]} 36. Kf2 {[%emt 0:00:21]} Qg1+ {[%emt 0:06:01]} 1/2-1/2

[Event "34th MPL National U12G Chess-ch 2022"]
[Site "Mysore"]
[Date "2022.04.12"]
[Round "8.3"]
[White "Aadhya Jain"]
[Black "Prishita Gupta"]
[Result "0-1"]
[ECO "C00"]
[WhiteElo "1128"]
[BlackElo "1412"]
[Annotator "NA RC"]
[PlyCount "66"]
[EventDate "2022.04.09"]
[EventCountry "IND"]
[SourceTitle "playchess.com"]
[Source "ChessBase"]
[SourceQuality "1"]
[TimeControl "5400+30"]

1. e4 {[%emt 0:00:10]} e6 {[%emt 0:00:06]} 2. b3 {[%emt 0:00:28]} d5 {[%emt 0:00:17]} 3. Bb2 {[%emt 0:00:07]} Nf6 {[%emt 0:00:15]} 4. e5 {[%emt 0:00:20]} Nfd7 {[%emt 0:00:03]} 5. d4 {[%emt 0:00:24]} c5 {[%emt 0:00:13]} 6. c3 {[%emt 0:00:07]} Nc6 {[%emt 0:00:11]} 7. Nf3 {[%emt 0:00:22]} Qb6 {[%emt 0:00:27]} 8. Bd3 {[%emt 0:01:05]} Be7 {[%emt 0:01:50]} 9. O-O {[%emt 0:00:40]} O-O {[%emt 0:00:08]} 10. Nbd2 {[%emt 0:03:21]} f6 {[%emt 0:01:11]} 11. Re1 {[%emt 0:05:09]} fxe5 {[%emt 0:01:16]} 12. Nxe5 {[%emt 0:02:00]} Ndxe5 {[%emt 0:00:09]} 13. dxe5 {[%emt 0:00:14]} c4 {[%emt 0:00:04]} 14. bxc4 {[%emt 0:10:33]} Qxb2 {[%emt 0:01:23]} 15. Qh5 {[%emt 0:00:22]} h6 {[%emt 0:04:26]} 16. Qg6 {[%emt 0:01:16]} Bc5 {[%emt 0:01:26]} 17. Qh7+ {[%emt 0:15:40]} Kf7 {[%emt 0:00:08]} 18. cxd5 {[%emt 0:03:07]} exd5 {[%emt 0:00:29]} 19. e6+ {[%emt 0:06:06]} Ke8 {[%emt 0:00:39]} 20. Bg6+ {[%emt 0:15:39]} Kd8 {[%emt 0:00:45]} 21. Ne4 {[%emt 0:07:19]} Bxf2+ {[%emt 0:01:41]} 22. Nxf2 {[%emt 0:00:22]} Qxf2+ {[%emt 0:00:10]} 23. Kh1 {[%emt 0:00:05]} Bxe6 {[%emt 0:00:20]} 24. Qxg7 {[%emt 0:00:32]} Rb8 {[%emt 0:02:30]} 25. Qxh6 {[%emt 0:04:03]} Qf6 {[%emt 0:00:42]} 26. h4 {[%emt 0:01:33]} Kd7 {[%emt 0:03:58]} 27. Qh7+ {[%emt 0:02:14]} Kd6 {[%emt 0:00:13]} 28. c4 {[%emt 0:07:52]} Rh8 {[%emt 0:02:40]} 29. c5+ {[%emt 0:00:12]} Kxc5 {[%emt 0:00:05]} 30. Qc7 {[%emt 0:00:26]} Rxh4+ {[%emt 0:00:06]} 31. Kg1 {[%emt 0:00:10]} Qd4+ {[%emt 0:00:05]} 32. Kf1 {[%emt 0:14:32]} Rh1+ {[%emt 0:00:05]} 33. Ke2 {[%emt 0:00:00]} Bg4# {[%emt 0:00:02]} 0-1

[Event "34th MPL National U12G Chess-ch 2022"]
[Site "Mysore"]
[Date "2022.04.12"]
[Round "8.4"]
[White "Charvi A"]
[Black "Vidula Anbuselvan"]
[Result "1-0"]
[ECO "B19"]
[WhiteElo "1267"]
[BlackElo "1125"]
[Annotator "NA RC"]
[PlyCount "132"]
[EventDate "2022.04.09"]
[EventCountry "IND"]
[SourceTitle "playchess.com"]
[Source "ChessBase"]
[SourceQuality "1"]
[TimeControl "5400+30"]

1. e4 {[%emt 0:00:04]} c6 {[%emt 0:00:07]} 2. d4 {[%emt 0:00:41]} d5 {[%emt 0:00:06]} 3. Nc3 {[%emt 0:00:09]} dxe4 {[%emt 0:00:06]} 4. Nxe4 {[%emt 0:00:10]} Bf5 {[%emt 0:00:07]} 5. Ng3 {[%emt 0:00:20]} Bg6 {[%emt 0:00:04]} 6. h4 {[%emt 0:00:21]} h6 {[%emt 0:00:11]} 7. Nf3 {[%emt 0:00:09]} e6 {[%emt 0:00:44]} 8. h5 {[%emt 0:00:55]} Bh7 {[%emt 0:00:10]} 9. Bd3 {[%emt 0:00:31]} Bxd3 {[%emt 0:00:08]} 10. Qxd3 {[%emt 0:00:20]} Nf6 {[%emt 0:00:23]} 11. Bd2 {[%emt 0:01:01]} Bd6 {[%emt 0:01:04]} 12. O-O-O {[%emt 0:00:10]} Qc7 {[%emt 0:02:24]} 13. Ne4 {[%emt 0:00:11]} Nxe4 {[%emt 0:00:12]} 14. Qxe4 {[%emt 0:00:37]} Nd7 {[%emt 0:01:07]} 15. Qg4 {[%emt 0:01:09]} Rh7 {[%emt 0:01:23]} 16. Qe4 {[%emt 0:01:39]} Nf6 {[%emt 0:00:51]} 17. Qd3 {[%emt 0:00:25]} Rh8 {[%emt 0:03:42]} 18. Kb1 {[%emt 0:01:34]} O-O-O {[%emt 0:01:24]} 19. g3 {[%emt 0:03:11]} Rhe8 {[%emt 0:04:26]} 20. Qb3 {[%emt 0:00:46]} Ne4 {[%emt 0:04:17]} 21. Be3 {[%emt 0:02:08]} f5 {[%emt 0:08:30]} 22. d5 {[%emt 0:00:35]} exd5 {[%emt 0:09:40]} 23. Bxa7 {[%emt 0:00:18]} b5 {[%emt 0:01:24]} 24. Be3 {[%emt 0:01:06]} f4 {[%emt 0:01:41]} 25. gxf4 {[%emt 0:00:31]} Bxf4 {[%emt 0:00:05]} 26. Bxf4 {[%emt 0:01:09]} Qxf4 {[%emt 0:00:08]} 27. Rhf1 {[%emt 0:03:28]} Rf8 {[%emt 0:03:43]} 28. Nd4 {[%emt 0:01:59]} Rf6 {[%emt 0:08:01]} 29. Qh3+ {[%emt 0:00:40]} Rd7 {[%emt 0:02:02]} 30. Qd3 {[%emt 0:12:48]} Rdf7 {[%emt 0:15:55]} 31. f3 {[%emt 0:03:43]} Ng5 {[%emt 0:14:31]} 32. Qa3 {[%emt 0:00:52]} Kd7 {[%emt 0:04:57]} 33. Qa7+ {[%emt 0:00:26]} Qc7 {[%emt 0:00:21]} 34. Qa8 {[%emt 0:00:59]} Rf8 {[%emt 0:01:31]} 35. Qa3 {[%emt 0:00:19]} Qd6 {[%emt 0:05:55]} 36. Qb3 {[%emt 0:00:13]} Kc8 {[%emt 0:01:41]} 37. Rd3 {[%emt 0:01:50]} Ne4 {[%emt 0:01:37]} 38. Rdd1 {[%emt 0:01:23]} Qf4 {[%emt 0:01:23]} 39. Qd3 {[%emt 0:01:54]} Nd6 {[%emt 0:01:11]} 40. Nxc6 {[%emt 0:00:42]} Qc4 {[%emt 0:01:25]} 41. Ne7+ {[%emt 0:00:29]} Kd8 {[%emt 0:00:25]} 42. Nxd5 {[%emt 0:00:52]} Qxd3 {[%emt 0:00:16]} 43. Rxd3 {[%emt 0:00:07]} Rf5 {[%emt 0:00:36]} 44. Nc3 {[%emt 0:01:14]} Kc7 {[%emt 0:00:32]} 45. Rfd1 {[%emt 0:00:21]} Nc4 {[%emt 0:00:30]} 46. Rd7+ {[%emt 0:00:33]} Kc6 {[%emt 0:00:11]} 47. Rxg7 {[%emt 0:00:20]} Rxf3 {[%emt 0:00:06]} 48. Rg6+ {[%emt 0:00:26]} R8f6 {[%emt 0:00:12]} 49. Rxf6+ {[%emt 0:00:17]} Rxf6 {[%emt 0:00:01]} 50. b3 {[%emt 0:02:37]} Ne3 {[%emt 0:00:19]} 51. Re1 {[%emt 0:01:06]} Ng4 {[%emt 0:00:33]} 52. Rg1 {[%emt 0:00:28]} Ne5 {[%emt 0:00:10]} 53. Ne2 {[%emt 0:02:37]} Nf3 {[%emt 0:00:50]} 54. Rg3 {[%emt 0:01:13]} Ng5 {[%emt 0:00:26]} 55. Kb2 {[%emt 0:00:35]} b4 {[%emt 0:00:04]} 56. Rg4 {[%emt 0:00:22]} Kc5 {[%emt 0:00:21]} 57. Ng3 {[%emt 0:00:26]} Re6 {[%emt 0:00:24]} 58. Nf5 {[%emt 0:00:33]} Nf7 {[%emt 0:00:30]} 59. Rg6 {[%emt 0:00:49]} Kd5 {[%emt 0:00:19]} 60. Rg4 {[%emt 0:08:39]} Rb6 {[%emt 0:00:44]} 61. Ne3+ {[%emt 0:00:11]} Kc5 {[%emt 0:00:23]} 62. Rf4 {[%emt 0:00:45]} Ng5 {[%emt 0:00:14]} 63. Ng4 {[%emt 0:00:41]} Nh3 {[%emt 0:00:35]} 64. Rf8 {[%emt 0:00:26]} Kd4 {[%emt 0:00:21]} 65. Rh8 {[%emt 0:00:19]} Nf4 {[%emt 0:00:05]} 66. Nxh6 {[%emt 0:00:07]} Rb7 {[%emt 0:05:46]} 1-0

[Event "34th MPL National U12G Chess-ch 2022"]
[Site "Mysore"]
[Date "2022.04.12"]
[Round "8.5"]
[White "Arshiya Das"]
[Black "Kathakali Dey"]
[Result "1/2-1/2"]
[ECO "B82"]
[WhiteElo "1407"]
[BlackElo "1130"]
[Annotator "NA RC"]
[PlyCount "62"]
[EventDate "2022.04.09"]
[EventCountry "IND"]
[SourceTitle "playchess.com"]
[Source "ChessBase"]
[SourceQuality "1"]
[TimeControl "5400+30"]

1. e4 {[%emt 0:00:03]} c5 {[%emt 0:00:11]} 2. Nf3 {[%emt 0:00:07]} d6 {[%emt 0:00:05]} 3. d4 {[%emt 0:00:07]} cxd4 {[%emt 0:00:06]} 4. Nxd4 {[%emt 0:00:05]} Nf6 {[%emt 0:00:07]} 5. Nc3 {[%emt 0:00:05]} a6 {[%emt 0:00:04]} 6. f4 {[%emt 0:00:06]} e6 {[%emt 0:01:16]} 7. Nf3 {[%emt 0:00:08]} Nc6 {[%emt 0:01:36]} 8. Bd3 {[%emt 0:00:16]} Be7 {[%emt 0:01:50]} 9. O-O {[%emt 0:00:16]} O-O {[%emt 0:03:01]} 10. Kh1 {[%emt 0:00:12]} b5 {[%emt 0:02:54]} 11. a3 {[%emt 0:00:17]} Bb7 {[%emt 0:00:22]} 12. Qe1 {[%emt 0:00:26]} Rc8 {[%emt 0:00:39]} 13. Qg3 {[%emt 0:00:47]} Kh8 {[%emt 0:02:18]} 14. Qh3 {[%emt 0:01:25]} h6 {[%emt 0:02:59]} 15. g4 {[%emt 0:01:33]} Nh7 {[%emt 0:14:36]} 16. Rg1 {[%emt 0:17:30]} e5 {[%emt 0:09:44]} 17. g5 {[%emt 0:07:29]} exf4 {[%emt 0:06:04]} 18. gxh6 {[%emt 0:00:57]} g6 {[%emt 0:00:22]} 19. Bxf4 {[%emt 0:04:59]} Bf6 {[%emt 0:05:08]} 20. Qg3 {[%emt 0:01:44]} Be7 {[%emt 0:05:33]} 21. Nd5 {[%emt 0:01:44]} Re8 {[%emt 0:03:11]} 22. Nxe7 {[%emt 0:00:54]} Rxe7 {[%emt 0:00:20]} 23. Bxd6 {[%emt 0:00:53]} Re6 {[%emt 0:00:42]} 24. Bf4 {[%emt 0:02:49]} Kg8 {[%emt 0:06:05]} 25. Ng5 {[%emt 0:09:23]} Nxg5 {[%emt 0:02:48]} 26. Bxg5 {[%emt 0:00:04]} Qb6 {[%emt 0:02:18]} 27. Raf1 {[%emt 0:09:35]} Ne7 {[%emt 0:06:18]} 28. Qh4 {[%emt 0:01:57]} Qd6 {[%emt 0:02:34]} 29. h7+ {[%emt 0:01:49]} Kg7 {[%emt 0:00:40]} 30. Qh6+ {[%emt 0:00:14]} Kh8 {[%emt 0:00:15]} 31. Rxf7 {[%emt 0:04:40]} Nf5 {[%emt 0:03:55]} 1/2-1/2

[Event "34th MPL National U12G Chess-ch 2022"]
[Site "Mysore"]
[Date "2022.04.12"]
[Round "8.6"]
[White "Kalyani Sirin"]
[Black "Theephigaa K P"]
[Result "1-0"]
[ECO "C54"]
[WhiteElo "1243"]
[BlackElo "1086"]
[Annotator "NA RC"]
[PlyCount "103"]
[EventDate "2022.04.09"]
[EventCountry "IND"]
[SourceTitle "playchess.com"]
[Source "ChessBase"]
[SourceQuality "1"]
[TimeControl "5400+30"]

1. e4 {[%emt 0:00:03]} e5 {[%emt 0:00:47]} 2. Nf3 {[%emt 0:00:07]} Nc6 {[%emt 0:00:08]} 3. Bc4 {[%emt 0:00:10]} Nf6 {[%emt 0:00:10]} 4. d3 {[%emt 0:00:18]} Bc5 {[%emt 0:00:25]} 5. O-O {[%emt 0:00:18]} d6 {[%emt 0:04:44]} 6. c3 {[%emt 0:01:28]} O-O {[%emt 0:00:30]} 7. h3 {[%emt 0:00:51]} h6 {[%emt 0:00:24]} 8. Re1 {[%emt 0:01:08]} a6 {[%emt 0:23:00]} 9. a4 {[%emt 0:01:00]} Bd7 {[%emt 0:05:56]} 10. Nbd2 {[%emt 0:01:30]} Qe7 {[%emt 0:04:32]} 11. Nf1 {[%emt 0:03:00]} Nh5 {[%emt 0:27:39]} 12. Ne3 {[%emt 0:08:57]} Nf4 {[%emt 0:02:30]} 13. Nd5 {[%emt 0:01:23]} Nxd5 {[%emt 0:06:15]} 14. exd5 {[%emt 0:00:25]} Nd8 {[%emt 0:05:30]} 15. d4 {[%emt 0:01:41]} Ba7 {[%emt 0:02:48]} 16. dxe5 {[%emt 0:00:50]} b5 {[%emt 0:03:23]} 17. Bb3 {[%emt 0:04:32]} Nb7 {[%emt 0:03:43]} 18. Bf4 {[%emt 0:01:22]} dxe5 {[%emt 0:03:26]} 19. Nxe5 {[%emt 0:00:31]} Qf6 {[%emt 0:02:18]} 20. Qd2 {[%emt 0:06:48]} Bf5 {[%emt 0:00:56]} 21. axb5 {[%emt 0:04:49]} Nc5 {[%emt 0:00:53]} 22. Ba2 {[%emt 0:06:55]} Ne4 {[%emt 0:00:37]} 23. Rxe4 {[%emt 0:00:15]} Bxe4 {[%emt 0:00:04]} 24. Re1 {[%emt 0:01:03]} Qf5 {[%emt 0:01:11]} 25. Nc6 {[%emt 0:03:14]} Rfe8 {[%emt 0:00:36]} 26. Nxa7 {[%emt 0:00:46]} Rxa7 {[%emt 0:00:29]} 27. f3 {[%emt 0:00:17]} axb5 {[%emt 0:00:25]} 28. fxe4 {[%emt 0:01:53]} Rxe4 {[%emt 0:00:04]} 29. Bb1 {[%emt 0:01:24]} Rxe1+ {[%emt 0:00:50]} 30. Qxe1 {[%emt 0:00:07]} Qd7 {[%emt 0:00:38]} 31. Kh2 {[%emt 0:01:19]} g5 {[%emt 0:00:29]} 32. Bg3 {[%emt 0:01:54]} Ra8 {[%emt 0:00:28]} 33. Qe4 {[%emt 0:00:31]} Re8 {[%emt 0:00:38]} 34. Qh7+ {[%emt 0:00:19]} Kf8 {[%emt 0:00:03]} 35. Qxh6+ {[%emt 0:00:16]} Ke7 {[%emt 0:00:40]} 36. Qxg5+ {[%emt 0:00:37]} f6 {[%emt 0:00:11]} 37. Qg7+ {[%emt 0:00:21]} Kd8 {[%emt 0:00:08]} 38. Qxf6+ {[%emt 0:00:16]} Qe7 {[%emt 0:00:18]} 39. Qc6 {[%emt 0:01:03]} Rf8 {[%emt 0:01:26]} 40. Bd3 {[%emt 0:01:11]} Rf6 {[%emt 0:00:45]} 41. Qa8+ {[%emt 0:00:10]} Kd7 {[%emt 0:00:16]} 42. Bxb5+ {[%emt 0:00:10]} c6 {[%emt 0:00:12]} 43. Bxc6+ {[%emt 0:00:56]} Rxc6 {[%emt 0:00:10]} 44. Qxc6+ {[%emt 0:00:05]} Kd8 {[%emt 0:00:05]} 45. d6 {[%emt 0:00:09]} Qh7 {[%emt 0:00:16]} 46. Bh4+ {[%emt 0:00:22]} Qxh4 {[%emt 0:00:11]} 47. Qc7+ {[%emt 0:00:09]} Ke8 {[%emt 0:00:05]} 48. d7+ {[%emt 0:00:08]} Kf7 {[%emt 0:00:14]} 49. d8=Q+ {[%emt 0:00:16]} Ke6 {[%emt 0:00:31]} 50. Qxh4 {[%emt 0:00:13]} Kf5 {[%emt 0:00:12]} 51. Qce7 {[%emt 0:00:35]} Kg6 {[%emt 0:00:09]} 52. Qef6# {[%emt 0:00:06]} 1-0

[Event "34th MPL National U12G Chess-ch 2022"]
[Site "Mysore"]
[Date "2022.04.13"]
[Round "9.1"]
[White "Prishita Gupta"]
[Black "Shubhi Gupta"]
[Result "0-1"]
[ECO "E07"]
[WhiteElo "1412"]
[BlackElo "1434"]
[Annotator "NA RC"]
[PlyCount "78"]
[EventDate "2022.04.09"]
[EventCountry "IND"]
[SourceTitle "playchess.com"]
[Source "ChessBase"]
[SourceQuality "1"]
[TimeControl "5400+30"]

1. d4 {[%emt 0:00:07]} d5 {[%emt 0:00:19]} 2. g3 {[%emt 0:00:21]} Nf6 {[%emt 0:01:07]} 3. Bg2 {[%emt 0:00:53]} e6 {[%emt 0:00:24]} 4. c4 {[%emt 0:00:04]} Be7 {[%emt 0:00:56]} 5. cxd5 {[%emt 0:00:21]} exd5 {[%emt 0:02:00]} 6. Nf3 {[%emt 0:00:44]} c6 {[%emt 0:01:14]} 7. Qc2 {[%emt 0:01:15]} Nbd7 {[%emt 0:01:07]} 8. Nc3 {[%emt 0:01:00]} O-O {[%emt 0:01:45]} 9. O-O {[%emt 0:00:15]} Re8 {[%emt 0:00:59]} 10. Bf4 {[%emt 0:01:10]} Nf8 {[%emt 0:00:48]} 11. Rad1 {[%emt 0:00:25]} Ng6 {[%emt 0:01:01]} 12. Bc1 {[%emt 0:00:12]} Bd6 {[%emt 0:03:32]} 13. Rfe1 {[%emt 0:01:37]} h6 {[%emt 0:03:03]} 14. Nd2 {[%emt 0:01:56]} Be6 {[%emt 0:02:13]} 15. e4 {[%emt 0:01:35]} dxe4 {[%emt 0:01:04]} 16. Ndxe4 {[%emt 0:00:30]} Nd5 {[%emt 0:06:52]} 17. Nxd6 {[%emt 0:01:14]} Qxd6 {[%emt 0:00:34]} 18. Ne4 {[%emt 0:00:52]} Qb4 {[%emt 0:02:31]} 19. Nc5 {[%emt 0:01:14]} Bg4 {[%emt 0:01:32]} 20. Rxe8+ {[%emt 0:01:41]} Rxe8 {[%emt 0:00:05]} 21. f3 {[%emt 0:02:32]} Re1+ {[%emt 0:01:38]} 22. Kf2 {[%emt 0:01:39]} Bf5 {[%emt 0:07:42]} 23. Ne4 {[%emt 0:02:01]} Rxd1 {[%emt 0:02:28]} 24. Qxd1 {[%emt 0:00:40]} Be6 {[%emt 0:00:47]} 25. Nc5 {[%emt 0:01:19]} Bf5 {[%emt 0:02:32]} 26. a3 {[%emt 0:00:47]} Qb6 {[%emt 0:01:54]} 27. Qe2 {[%emt 0:01:33]} Nge7 {[%emt 0:01:43]} 28. Qe5 {[%emt 0:01:08]} Kh7 {[%emt 0:04:54]} 29. f4 {[%emt 0:00:49]} Bc8 {[%emt 0:03:25]} 30. Be4+ {[%emt 0:00:49]} g6 {[%emt 0:01:58]} 31. Bxd5 {[%emt 0:00:35]} Nxd5 {[%emt 0:00:10]} 32. Qe8 {[%emt 1:15:12]} Qc7 {[%emt 0:44:13]} 33. Qf8 {[%emt 0:00:00]} Bf5 {[%emt 0:00:00]} 34. Kf3 {[%emt 0:00:00]} Nf6 {[%emt 0:00:00]} 35. Bd2 {[%emt 0:00:00]} b6 {[%emt 0:00:00]} 36. Nb3 {[%emt 0:00:00]} Qd7 {[%emt 0:00:00]} 37. Qb4 {[%emt 0:00:00]} Qd5+ {[%emt 0:00:00]} 38. Kf2 {[%emt 0:00:00]} Ng4+ {[%emt 0:00:00]} 39. Kg1 {[%emt 0:00:00]} Qf3 {[%emt 0:00:00]} 0-1

[Event "34th MPL National U12G Chess-ch 2022"]
[Site "Mysore"]
[Date "2022.04.13"]
[Round "9.2"]
[White "Shriyana S Mallya"]
[Black "Shreya G Hipparagi"]
[Result "0-1"]
[ECO "B23"]
[WhiteElo "1277"]
[BlackElo "1552"]
[Annotator "NA RC"]
[PlyCount "112"]
[EventDate "2022.04.09"]
[EventCountry "IND"]
[SourceTitle "playchess.com"]
[Source "ChessBase"]
[SourceQuality "1"]
[TimeControl "5400+30"]

1. e4 {[%emt 0:00:03]} c5 {[%emt 0:00:14]} 2. Nc3 {[%emt 0:00:10]} Nc6 {[%emt 1:31:16]} 3. f4 {[%emt 0:00:53]} g6 {[%emt 0:00:00]} 4. Nf3 {[%emt 0:00:35]} Bg7 {[%emt 0:00:00]} 5. Bb5 {[%emt 0:01:20]} Nd4 {[%emt 0:00:00]} 6. O-O {[%emt 0:01:00]} a6 {[%emt 0:00:00]} 7. Bd3 {[%emt 0:00:57]} e6 {[%emt 0:00:00]} 8. e5 {[%emt 0:04:03]} Nxf3+ {[%emt 0:00:00]} 9. Qxf3 {[%emt 0:01:34]} d5 {[%emt 0:00:00]} 10. b3 {[%emt 0:11:10]} b5 {[%emt 0:00:00]} 11. Kh1 {[%emt 0:00:26]} Ne7 {[%emt 0:00:00]} 12. a4 {[%emt 0:01:37]} b4 {[%emt 0:00:00]} 13. Ne2 {[%emt 0:02:19]} O-O {[%emt 0:00:00]} 14. c3 {[%emt 0:02:08]} f6 {[%emt 0:00:00]} 15. exf6 {[%emt 0:03:53]} Bxf6 {[%emt 0:00:00]} 16. Rb1 {[%emt 0:04:05]} Bb7 {[%emt 0:00:00]} 17. Qh3 {[%emt 0:06:05]} Qd6 {[%emt 0:00:00]} 18. cxb4 {[%emt 0:13:10]} cxb4 {[%emt 0:00:00]} 19. Ng3 {[%emt 0:07:41]} e5 {[%emt 0:00:00]} 20. Bb2 {[%emt 0:17:34]} exf4 {[%emt 0:00:00]} 21. Bxf6 {[%emt 0:00:16]} Rxf6 {[%emt 0:00:00]} 22. Ne2 {[%emt 0:01:10]} Raf8 {[%emt 0:00:00]} 23. Nd4 {[%emt 0:03:39]} Nc6 {[%emt 0:00:00]} 24. Nf3 {[%emt 0:04:51]} Ne5 {[%emt 0:00:00]} 25. Ng5 {[%emt 0:01:35]} Qd7 {[%emt 0:00:00]} 26. Qxd7 {[%emt 0:02:54]} Nxd7 {[%emt 0:00:00]} 27. Rfe1 {[%emt 0:01:54]} Nc5 {[%emt 0:00:00]} 28. Bc2 {[%emt 0:01:08]} d4 {[%emt 0:00:00]} 29. Ne4 {[%emt 0:03:52]} Rc6 {[%emt 0:00:00]} 30. Nf2 {[%emt 0:02:15]} f3 {[%emt 0:00:00]} 31. g3 {[%emt 0:00:20]} d3 {[%emt 0:00:00]} 32. Bd1 {[%emt 0:00:59]} Re6 {[%emt 0:00:00]} 33. Rxe6 {[%emt 0:00:40]} Nxe6 {[%emt 0:00:00]} 34. Rc1 {[%emt 0:00:16]} Ng5 {[%emt 0:00:00]} 35. Kg1 {[%emt 0:00:21]} Re8 {[%emt 0:02:43]} 36. Kf1 {[%emt 0:00:26]} a5 {[%emt 0:06:20]} 37. Rc5 {[%emt 0:00:42]} Ne6 {[%emt 0:01:39]} 38. Re5 {[%emt 0:00:40]} Kf7 {[%emt 0:00:33]} 39. Nxd3 {[%emt 0:00:29]} Ba6 {[%emt 0:00:11]} 40. Rd5 {[%emt 0:00:28]} Rd8 {[%emt 0:01:27]} 41. Rxd8 {[%emt 0:00:23]} Nxd8 {[%emt 0:00:09]} 42. Bc2 {[%emt 0:00:08]} Nc6 {[%emt 0:00:34]} 43. Ke1 {[%emt 0:00:40]} Nd4 {[%emt 0:00:30]} 44. Kd1 {[%emt 0:00:38]} Bxd3 {[%emt 0:00:45]} 45. Bxd3 {[%emt 0:00:18]} Kf6 {[%emt 0:01:11]} 46. Bc4 {[%emt 0:00:43]} f2 {[%emt 0:00:08]} 47. Ba6 {[%emt 0:00:48]} Nxb3 {[%emt 0:01:33]} 48. Ke2 {[%emt 0:00:14]} Nc5 {[%emt 0:00:15]} 49. Bc4 {[%emt 0:00:27]} Nxa4 {[%emt 0:00:22]} 50. Kxf2 {[%emt 0:00:08]} Nb6 {[%emt 0:01:55]} 51. Ba2 {[%emt 0:00:27]} a4 {[%emt 0:00:06]} 52. Ke2 {[%emt 0:00:12]} b3 {[%emt 0:00:06]} 53. Bb1 {[%emt 0:00:03]} a3 {[%emt 0:00:10]} 54. Kd1 {[%emt 0:00:50]} a2 {[%emt 0:00:04]} 55. Bxa2 {[%emt 0:00:09]} bxa2 {[%emt 0:00:03]} 56. Kc2 {[%emt 0:00:05]} a1=Q {[%emt 0:00:06]} 0-1